fUSD/lending_fUSD_20260127
["ID","MTS","AMOUNT","RATE_DAILY","PERIOD"]
[403816496,1769554232415,-500.0,0.0001484,2]
[403816498,1769554232424,-385.18354163,0.0001484,2]
[403816500,1769554232434,-509.44466748,0.0001484,2]
[403816502,1769554232443,-500.0,0.0001484,2]
[403816504,1769554232452,-500.0,0.0001484,2]
[403816506,1769554232461,-370.45918944,0.0001484,2]
[403816508,1769554232470,-500.0,0.0001484,2]
[403816510,1769554232479,-502.09877135,0.0001484,2]
[403816512,1769554232488,-500.0,0.0001484,2]
[403816514,1769554232497,-327.49083589,0.0001484,2]
[403816516,1769554232507,-500.0,0.0001484,2]
[403816518,1769554232517,-503.02582644,0.0001484,2]
[403816520,1769554232527,-500.0,0.0001484,2]
[403816522,1769554232536,-500.0,0.0001484,2]
[403816524,1769554232545,-511.21840013,0.0001484,2]
[403816526,1769554232554,-500.0,0.0001484,2]
[403816528,1769554232564,-191.10032744,0.0001484,2]
[403816530,1769554232576,-343.50736064,0.0001484,2]
[403816532,1769554232586,-150.00227046,0.0001484,2]
[403816534,1769554232595,-1301.71,0.0001484,2]
[403816536,1769554232604,-500.0,0.00014943,2]
[403816538,1769554232615,-500.0,0.00014943,2]
[403816540,1769554232623,-964.64733398,0.00014988,2]
[403816543,1769554232638,-4044.20541293,0.00014988,2]
[403816545,1769554232649,-2001.9383228,0.00014988,2]
[403816548,1769554232669,-1129.77583328,0.00014988,2]
[403816554,1769554237948,-907.14,0.00014988,2]
[403816555,1769554237959,-408.348,0.00014988,2]
[403816556,1769554237970,-507.71285999,0.00014988,2]
[403816557,1769554238015,-476.9799995,0.00014988,2]
[403816558,1769554238078,-3102.34749703,0.00014988,2]
[403816559,1769554238087,-683.32393183,0.00014988,2]
[403816566,1769554240012,-4081.75028324,0.00014988,2]
[403816567,1769554240024,-2384.78114555,0.00014988,2]
[403816568,1769554240035,-1668.2263106,0.00014988,2]
[403816569,1769554240046,-1731.41031661,0.00014988,2]
[403816570,1769554240076,-5056.27034561,0.00014988,2]
[403816571,1769554240085,-500.0,0.00015039,2]
[403816572,1769554240097,-1242.68,0.00015052,2]
[403816573,1769554240106,-1301.71,0.00015114,2]
[403816574,1769554240116,-200.0,0.00015183,2]
[403816575,1769554240131,-500.0,0.00015183,2]
[403816576,1769554240143,-303.04824933,0.00015183,2]
[403816577,1769554240152,-13543.09525951,0.00015352,2]
[403816578,1769554240161,-15605.76233344,0.00015352,2]
[403816579,1769554240170,-1301.71,0.00015388,2]
[403816580,1769554240180,-151.0,0.00015459,2]
[403816581,1769554240189,-151.0,0.00015465,2]
[403816582,1769554240198,-151.0,0.00015465,2]
[403816583,1769554240207,-151.0,0.00015465,2]
[403816584,1769554240216,-151.0,0.00015469,2]
[403816585,1769554240224,-151.0,0.00015469,2]
[403816586,1769554240233,-151.0,0.00015472,2]
[403816587,1769554240242,-151.0,0.00015472,2]
[403816588,1769554240251,-500.0,0.00015487,2]
[403816589,1769554240260,-1533.0,0.00015508,2]
[403816590,1769554240269,-1727.0,0.00015539,2]
[403816598,1769554240573,-255.0,0.00015662,2]
[403816599,1769554240608,-1301.71,0.00015662,2]
[403816600,1769554240617,-13543.09525951,0.00015716,2]
[403816601,1769554240626,-15605.76233344,0.00015716,2]
[403816602,1769554240634,-204.21914209,0.00015731,2]
[403816603,1769554240644,-500.0,0.00015731,2]
[403816604,1769554240653,-1242.68,0.00015769,2]
[403816605,1769554240662,-1301.71,0.00015936,2]
[403816606,1769554240671,-300.0,0.00015997,2]
[403816607,1769554240680,-600.0,0.00015997,2]
[403816608,1769554240689,-250.0,0.00015997,2]
[403816609,1769554240698,-5000.0,0.00015997,2]
[403816610,1769554240708,-193.0,0.00015997,2]
[403816611,1769554240717,-195.0,0.00015997,2]
[403816612,1769554240726,-2500.0,0.00015997,2]
[403816613,1769554240735,-13543.09525951,0.0001608,2]
[403816614,1769554240744,-15605.76233344,0.0001608,2]
[403816615,1769554240753,-9999.99,0.00016116,2]
[403816616,1769554240763,-383.64,0.00016134,2]
[403816617,1769554240772,-1264.73042674,0.00016147,2]
[403816618,1769554240781,-1680.0,0.00016195,2]
[403816619,1769554240790,-1241.77,0.00016203,2]
[403816620,1769554240799,-1301.71,0.0001621,2]
[403816621,1769554240808,-150.00227046,0.00016229,2]
[403816622,1769554240817,-5926.25,0.00016365,2]
[403816623,1769554240826,-500.0,0.00016373,2]
[403816624,1769554240835,-500.0,0.00016373,2]
[403816625,1769554240845,-500.0,0.00016373,2]
[403816626,1769554240854,-500.0,0.00016373,2]
[403816627,1769554240863,-500.0,0.00016373,2]
[403816628,1769554240872,-500.0,0.00016373,2]
[403816629,1769554240881,-297.22,0.00016402,7]
[403816630,1769554240890,-174.29,0.00016428,2]
[403816631,1769554240899,-500.0,0.00016437,2]
[403816632,1769554240908,-298.466,0.00016437,2]
[403816633,1769554240917,-500.0,0.00016438,2]
[403816634,1769554240926,-2395.12,0.00016438,2]
[403816635,1769554240935,-2395.12,0.00016438,2]
[403816636,1769554240944,-2395.12,0.00016438,2]
[403816637,1769554240953,-2395.12,0.00016438,2]
[403816638,1769554240962,-2395.12,0.00016438,2]
[403816639,1769554240971,-2395.12,0.00016438,2]
[403816640,1769554240980,-2395.12,0.00016438,2]
[403816641,1769554240989,-2395.12,0.00016438,2]
[403816642,1769554240998,-2395.12,0.00016438,2]
[403816643,1769554241007,-2395.12,0.00016438,2]
[403816644,1769554241016,-2395.12,0.00016438,2]
[403816645,1769554241025,-2395.12,0.00016438,2]
[403816646,1769554241034,-2395.12,0.00016438,2]
[403816647,1769554241043,-2395.12,0.00016438,2]
[403816648,1769554241052,-2395.12,0.00016438,2]
[403816649,1769554241061,-2395.12,0.00016438,2]
[403816650,1769554241071,-2395.12,0.00016438,2]
[403816651,1769554241081,-2395.12,0.00016438,2]
[403816652,1769554241090,-2395.12,0.00016438,2]
[403816653,1769554241106,-2395.12,0.00016438,2]
[403816654,1769554241116,-2395.12,0.00016438,2]
[403816655,1769554241126,-2395.12,0.00016438,2]
[403816656,1769554241136,-2395.12,0.00016438,2]
[403816657,1769554241145,-2395.18309839,0.00016438,2]
[403816658,1769554241154,-608.4253297,0.00016438,2]
[403816659,1769554241163,-608.4253297,0.00016438,2]
[403816660,1769554241173,-608.4253297,0.00016438,2]
[403816661,1769554241182,-608.4253297,0.00016438,2]
[403816662,1769554241191,-608.4253297,0.00016438,2]
[403816663,1769554241200,-608.4253297,0.00016438,2]
[403816664,1769554241209,-608.4253297,0.00016438,2]
[403816665,1769554241218,-608.4253297,0.00016438,2]
[403816666,1769554241227,-608.4253297,0.00016438,2]
[403816667,1769554241235,-608.4253297,0.00016438,2]
[403816668,1769554241244,-608.4253297,0.00016438,2]
[403816669,1769554241253,-608.4253297,0.00016438,2]
[403816670,1769554241262,-608.4253297,0.00016438,2]
[403816671,1769554241272,-608.4253297,0.00016438,2]
[403816672,1769554241280,-608.4253297,0.00016438,2]
[403816673,1769554241289,-608.4253297,0.00016438,2]
[403816674,1769554241299,-608.4253297,0.00016438,2]
[403816675,1769554241307,-608.4253297,0.00016438,2]
[403816676,1769554241316,-608.4253297,0.00016438,2]
[403816677,1769554241326,-608.4253297,0.00016438,2]
[403816678,1769554241335,-608.4253297,0.00016438,2]
[403816679,1769554241344,-608.4253297,0.00016438,2]
[403816680,1769554241353,-608.4253297,0.00016438,2]
[403816681,1769554241362,-608.4253297,0.00016438,2]
[403816682,1769554241371,-608.4253297,0.00016438,2]
[403816683,1769554241380,-608.4253297,0.00016438,2]
[403816684,1769554241389,-608.4253297,0.00016438,2]
[403816685,1769554241398,-608.4253297,0.00016438,2]
[403816686,1769554241407,-608.4253297,0.00016438,2]
[403816687,1769554241417,-608.4253297,0.00016438,2]
[403816688,1769554241426,-608.4253297,0.00016438,2]
[403816689,1769554241434,-608.4253297,0.00016438,2]
[403816690,1769554241443,-608.4253297,0.00016438,2]
[403816691,1769554241452,-608.4253297,0.00016438,2]
[403816692,1769554241461,-608.4253297,0.00016438,2]
[403816693,1769554241470,-608.4253297,0.00016438,2]
[403816694,1769554241479,-608.4253297,0.00016438,2]
[403816695,1769554241488,-608.4253297,0.00016438,2]
[403816696,1769554241497,-608.4253297,0.00016438,2]
[403816697,1769554241506,-608.4253297,0.00016438,2]
[403816698,1769554241515,-608.4253297,0.00016438,2]
[403816699,1769554241524,-608.4253297,0.00016438,2]
[403816700,1769554241533,-608.4253297,0.00016438,2]
[403816701,1769554241541,-608.4253297,0.00016438,2]
[403816702,1769554241550,-608.4253297,0.00016438,2]
[403816703,1769554241558,-608.4253297,0.00016438,2]
[403816704,1769554241568,-542.13465711,0.00016438,2]
[403816705,1769554241576,-601.0055086,0.00016438,2]
[403816706,1769554241585,-601.0055086,0.00016438,2]
[403816707,1769554241594,-601.0055086,0.00016438,2]
[403816708,1769554241603,-601.0055086,0.00016438,2]
[403816709,1769554241612,-601.0055086,0.00016438,2]
[403816710,1769554241621,-601.0055086,0.00016438,2]
[403816711,1769554241630,-601.0055086,0.00016438,2]
[403816712,1769554241639,-601.0055086,0.00016438,2]
[403816713,1769554241648,-601.0055086,0.00016438,2]
[403816714,1769554241657,-601.0055086,0.00016438,2]
[403816715,1769554241665,-601.0055086,0.00016438,2]
[403816716,1769554241675,-601.0055086,0.00016438,2]
[403816717,1769554241684,-601.0055086,0.00016438,2]
[403816718,1769554241693,-601.0055086,0.00016438,2]
[403816719,1769554241702,-601.0055086,0.00016438,2]
[403816720,1769554241711,-601.0055086,0.00016438,2]
[403816721,1769554241720,-601.0055086,0.00016438,2]
[403816722,1769554241730,-601.0055086,0.00016438,2]
[403816723,1769554241739,-601.0055086,0.00016438,2]
[403816724,1769554241748,-601.0055086,0.00016438,2]
[403816725,1769554241757,-601.0055086,0.00016438,2]
[403816726,1769554241767,-601.0055086,0.00016438,2]
[403816727,1769554241777,-601.0055086,0.00016438,2]
[403816728,1769554241786,-601.0055086,0.00016438,2]
[403816729,1769554241795,-601.0055086,0.00016438,2]
[403816730,1769554241804,-601.0055086,0.00016438,2]
[403816731,1769554241814,-601.0055086,0.00016438,2]
[403816732,1769554241823,-601.0055086,0.00016438,2]
[403816733,1769554241832,-601.0055086,0.00016438,2]
[403816734,1769554241842,-601.0055086,0.00016438,2]
[403816735,1769554241851,-601.0055086,0.00016438,2]
[403816736,1769554241860,-500.0,0.00016438,2]
[403816737,1769554241869,-575.71176963,0.00016438,2]
[403816738,1769554241878,-13543.09525951,0.00016444,2]
[403816739,1769554241887,-15605.76233344,0.00016444,2]
[403816740,1769554241897,-1301.71,0.00016484,2]
[403816741,1769554241906,-1242.68,0.00016486,2]
[403816742,1769554241916,-155.0,0.00016672,2]
[403816743,1769554241928,-150.0,0.0001674,2]
[403816744,1769554241937,-150.0,0.0001674,2]
[403816745,1769554241946,-500.0,0.0001674,2]
[403816746,1769554241956,-500.0,0.0001674,2]
[403816747,1769554241967,-150.0,0.0001674,2]
[403816748,1769554241977,-150.0,0.0001674,2]
[403816749,1769554241987,-150.0,0.0001674,2]
[403816750,1769554241996,-500.0,0.0001674,2]
[403816751,1769554242005,-213.19994559,0.0001674,2]
[403816752,1769554242014,-150.0,0.0001674,2]
[403816753,1769554242023,-243.9850094,0.0001674,2]
[403816754,1769554242032,-150.0,0.0001674,2]
[403816755,1769554242041,-150.0,0.0001674,2]
[403816756,1769554242050,-150.0,0.0001674,2]
[403816757,1769554242059,-150.0,0.0001674,2]
[403816758,1769554242068,-150.0,0.0001674,2]
[403816759,1769554242077,-500.0,0.0001674,2]
[403816760,1769554242087,-150.0,0.0001674,2]
[403816761,1769554242099,-202.67953144,0.0001674,2]
[403816762,1769554242108,-150.0,0.0001674,2]
[403816763,1769554242118,-150.0,0.0001674,2]
[403816764,1769554242127,-500.0,0.0001674,2]
[403816765,1769554242139,-500.0,0.0001674,2]
[403816766,1769554242149,-500.0,0.0001674,2]
[403816767,1769554242158,-150.0,0.0001674,2]
[403816768,1769554242169,-474.0,0.0001674,2]
[403816769,1769554242179,-150.0,0.0001674,2]
[403816770,1769554242189,-500.0,0.0001674,2]
[403816771,1769554242199,-500.0,0.0001674,2]
[403816772,1769554242209,-500.0,0.0001674,2]
[403816773,1769554242218,-150.0,0.0001674,2]
[403816774,1769554242227,-500.0,0.0001674,2]
[403816775,1769554242238,-500.0,0.0001674,2]
[403816776,1769554242248,-150.0,0.0001674,2]
[403816777,1769554242258,-500.0,0.0001674,2]
[403816778,1769554242267,-857.0,0.0001674,2]
[403816779,1769554242276,-500.0,0.0001674,2]
[403816780,1769554242286,-440.0,0.0001674,2]
[403816781,1769554242297,-500.0,0.0001674,2]
[403816782,1769554242306,-500.0,0.0001674,2]
[403816783,1769554242315,-150.0,0.0001674,2]
[403816784,1769554242324,-500.0,0.0001674,2]
[403816785,1769554242335,-500.0,0.0001674,2]
[403816786,1769554242344,-500.0,0.0001674,2]
[403816787,1769554242354,-150.0,0.0001674,2]
[403816788,1769554242366,-1301.71,0.00016758,2]
[403816789,1769554242375,-150.0,0.00016795,2]
[403816790,1769554242385,-150.0,0.00016795,2]
[403816791,1769554242395,-500.0,0.00016795,2]
[403816792,1769554242406,-500.0,0.00016795,2]
[403816793,1769554242416,-150.0,0.00016795,2]
[403816794,1769554242426,-150.0,0.00016795,2]
[403816795,1769554242435,-150.19824857,0.00016795,2]
[403816796,1769554242446,-500.0,0.00016795,2]
[403816797,1769554242456,-150.0,0.00016795,2]
[403816798,1769554242465,-150.0,0.00016795,2]
[403816799,1769554242473,-150.0,0.00016795,2]
[403816800,1769554242484,-500.0,0.00016795,2]
[403816801,1769554242495,-150.0,0.00016795,2]
[403816802,1769554242505,-276.03110523,0.00016795,2]
[403816803,1769554242515,-500.0,0.00016795,2]
[403816804,1769554242524,-500.0,0.00016795,2]
[403816805,1769554242533,-500.0,0.00016795,2]
[403816806,1769554242543,-150.0,0.00016795,2]
[403816807,1769554242553,-474.0,0.00016795,2]
[403816808,1769554242562,-150.0,0.00016795,2]
[403816809,1769554242572,-500.0,0.00016795,2]
[403816810,1769554242582,-500.0,0.00016795,2]
[403816811,1769554242591,-500.0,0.00016795,2]
[403816812,1769554242599,-248.52684303,0.00016795,2]
[403816813,1769554242609,-500.0,0.00016795,2]
[403816814,1769554242619,-500.0,0.00016795,2]
[403816815,1769554242628,-500.0,0.00016795,2]
[403816816,1769554242637,-857.0,0.00016795,2]
[403816817,1769554242646,-500.0,0.00016795,2]
[403816818,1769554242655,-440.0,0.00016795,2]
[403816819,1769554242664,-500.0,0.00016795,2]
[403816820,1769554242675,-500.0,0.00016795,2]
[403816821,1769554242685,-500.0,0.00016795,2]
[403816823,1769554242694,-500.0,0.00016795,2]
[403816824,1769554242703,-500.0,0.00016795,2]
[403816825,1769554242713,-13543.09525951,0.00016808,2]
[403816826,1769554242722,-15605.76233344,0.00016808,2]
[403816827,1769554242731,-150.0,0.0001685,2]
[403816828,1769554242740,-152.19420035,0.0001685,2]
[403816829,1769554242749,-500.0,0.0001685,2]
[403816830,1769554242758,-500.0,0.0001685,2]
[403816831,1769554242768,-150.0,0.0001685,2]
[403816832,1769554242777,-240.41327915,0.0001685,2]
[403816833,1769554242786,-500.0,0.0001685,2]
[403816834,1769554242795,-150.0,0.0001685,2]
[403816835,1769554242806,-150.0,0.0001685,2]
[403816836,1769554242817,-200.0,0.0001685,2]
[403816837,1769554242827,-500.0,0.0001685,2]
[403816838,1769554242836,-150.0,0.0001685,2]
[403816839,1769554242845,-380.68156402,0.0001685,2]
[403816840,1769554242854,-500.0,0.0001685,2]
[403816841,1769554242863,-500.0,0.0001685,2]
[403816842,1769554242873,-150.0,0.0001685,2]
[403816843,1769554242883,-474.0,0.0001685,2]
[403816844,1769554242892,-150.0,0.0001685,2]
[403816845,1769554242902,-265.63318921,0.0001685,2]
[403816846,1769554242913,-500.0,0.0001685,2]
[403816847,1769554242924,-500.0,0.0001685,2]
[403816848,1769554242935,-500.0,0.0001685,2]
[403816849,1769554242946,-500.0,0.0001685,2]
[403816850,1769554242955,-500.0,0.0001685,2]
[403816851,1769554242964,-857.0,0.0001685,2]
[403816852,1769554242974,-500.0,0.0001685,2]
[403816854,1769554242985,-440.0,0.0001685,2]
[403816857,1769554242994,-500.0,0.0001685,2]
[403816859,1769554243003,-500.0,0.0001685,2]
[403816860,1769554243013,-500.0,0.0001685,2]
[403816861,1769554243030,-500.0,0.0001685,2]
[403816862,1769554243039,-500.0,0.0001685,2]
[403816863,1769554243048,-433.0,0.00016869,2]
[403816864,1769554243056,-8200.0,0.000169,6]
[403816865,1769554243066,-150.0,0.00016904,2]
[403816866,1769554243078,-500.0,0.00016904,2]
[403816867,1769554243088,-500.0,0.00016904,2]
[403816868,1769554243101,-150.0,0.00016904,2]
[403816869,1769554243110,-500.0,0.00016904,2]
[403816870,1769554243121,-200.93589511,0.00016904,2]
[403816871,1769554243132,-150.0,0.00016904,2]
[403816872,1769554243143,-251.7333692,0.00016904,2]
[403816873,1769554243155,-201.72695087,0.00016904,2]
[403816874,1769554243165,-500.0,0.00016904,2]
[403816875,1769554243175,-500.0,0.00016904,2]
[403816876,1769554243183,-150.0,0.00016904,2]
[403816877,1769554243193,-474.0,0.00016904,2]
[403816878,1769554243202,-150.0,0.00016904,2]
[403816879,1769554243214,-436.0,0.00016904,2]
[403816880,1769554243225,-602.32249886,0.00016904,2]
[403816881,1769554243235,-500.0,0.00016904,2]
[403816882,1769554243246,-375.73815935,0.00016904,2]
[403816883,1769554243255,-500.0,0.00016904,2]
[403816884,1769554243265,-857.0,0.00016904,2]
[403816885,1769554243274,-500.0,0.00016904,2]
[403816886,1769554243285,-440.0,0.00016904,2]
[403816887,1769554243295,-500.0,0.00016904,2]
[403816888,1769554243304,-500.0,0.00016904,2]
[403816889,1769554243314,-500.0,0.00016904,2]
[403816890,1769554243326,-500.0,0.00016904,2]
[403816891,1769554243337,-500.0,0.00016904,2]
[403816892,1769554243348,-155.0,0.00016907,2]
[403816893,1769554243357,-561.30412969,0.00016921,2]
[403816894,1769554243367,-500.0,0.00016921,2]
[403816895,1769554243376,-1000.44164958,0.00016921,2]
[403816896,1769554243384,-500.0,0.00016921,2]
[403816897,1769554243393,-687.78066829,0.00016921,2]
[403816898,1769554243403,-150.0,0.00016959,2]
[403816899,1769554243413,-500.0,0.00016959,2]
[403816900,1769554243423,-500.0,0.00016959,2]
[403816901,1769554243433,-150.0,0.00016959,2]
[403816902,1769554243443,-500.0,0.00016959,2]
[403816903,1769554243452,-150.0,0.00016959,2]
[403816904,1769554243461,-500.0,0.00016959,2]
[403816905,1769554243480,-500.0,0.00016959,2]
[403816906,1769554243496,-150.0,0.00016959,2]
[403816907,1769554243507,-474.0,0.00016959,2]
[403816908,1769554243517,-150.0,0.00016959,2]
[403816909,1769554243527,-500.0,0.00016959,2]
[403816910,1769554243536,-500.0,0.00016959,2]
[403816911,1769554243545,-857.0,0.00016959,2]
[403816912,1769554243554,-500.0,0.00016959,2]
[403816913,1769554243563,-440.0,0.00016959,2]
[403816914,1769554243575,-500.0,0.00016959,2]
[403816915,1769554243584,-500.0,0.00016959,2]
[403816916,1769554243593,-500.0,0.00016959,2]
[403816917,1769554243602,-500.0,0.00016959,2]
[403816918,1769554243611,-500.0,0.00016959,2]
[403816919,1769554243620,-250.0,0.00017014,2]
[403816920,1769554243630,-500.0,0.00017014,2]
[403816921,1769554243639,-500.0,0.00017014,2]
[403816922,1769554243648,-500.0,0.00017014,2]
[403816923,1769554243657,-200.0,0.00017014,2]
[403816924,1769554243667,-250.0,0.00017014,2]
[403816925,1769554243676,-500.0,0.00017014,2]
[403816926,1769554243686,-500.0,0.00017014,2]
[403816927,1769554243695,-250.0,0.00017014,2]
[403816928,1769554243704,-474.0,0.00017014,2]
[403816929,1769554243713,-250.0,0.00017014,2]
[403816930,1769554243722,-500.0,0.00017014,2]
[403816931,1769554243732,-571.96088901,0.00017014,2]
[403816932,1769554243742,-857.0,0.00017014,2]
[403816933,1769554243751,-500.0,0.00017014,2]
[403816934,1769554243762,-440.0,0.00017014,2]
[403816935,1769554243778,-500.0,0.00017014,2]
[403816936,1769554243788,-500.0,0.00017014,2]
[403816937,1769554243797,-500.0,0.00017014,2]
[403816938,1769554243807,-500.0,0.00017014,2]
[403816939,1769554243817,-500.0,0.00017014,2]
[403816940,1769554243826,-1301.71,0.00017032,2]
[403816941,1769554243835,-200.0,0.00017046,2]
[403816942,1769554243845,-500.0,0.00017069,2]
[403816943,1769554243855,-500.0,0.00017069,2]
[403816944,1769554243863,-469.57430697,0.00017069,2]
[403816945,1769554243873,-500.0,0.00017069,2]
[403816946,1769554243882,-500.0,0.00017069,2]
[403816947,1769554243891,-474.0,0.00017069,2]
[403816948,1769554243900,-500.0,0.00017069,2]
[403816949,1769554243910,-857.0,0.00017069,2]
[403816950,1769554243919,-440.0,0.00017069,2]
[403816951,1769554243928,-465.49006321,0.00017069,2]
[403816952,1769554243937,-500.0,0.00017069,2]
[403816953,1769554243947,-500.0,0.00017069,2]
[403816954,1769554243956,-395.0,0.00017069,2]
[403816955,1769554243965,-500.0,0.00017069,2]
[403816956,1769554243974,-500.0,0.00017069,2]
[403816957,1769554243984,-500.0,0.00017124,2]
[403816958,1769554243994,-500.0,0.00017124,2]
[403816959,1769554244002,-500.0,0.00017124,2]
[403816960,1769554244011,-500.0,0.00017124,2]
[403816961,1769554244020,-474.0,0.00017124,2]
[403816962,1769554244030,-500.0,0.00017124,2]
[403816963,1769554244039,-857.0,0.00017124,2]
[403816964,1769554244048,-440.0,0.00017124,2]
[403816965,1769554244059,-500.0,0.00017124,2]
[403816966,1769554244072,-500.0,0.00017124,2]
[403816967,1769554244083,-500.0,0.00017124,2]
[403816968,1769554244093,-500.0,0.00017124,2]
[403816969,1769554244105,-155.0,0.00017141,2]
[403816970,1769554244114,-707.0,0.00017168,2]
[403816971,1769554244126,-13543.09525951,0.00017172,2]
[403816972,1769554244136,-15605.76233344,0.00017172,2]
[403816973,1769554244148,-500.0,0.00017178,2]
[403816974,1769554244159,-500.0,0.00017178,2]
[403816975,1769554244169,-500.0,0.00017178,2]
[403816976,1769554244178,-500.0,0.00017178,2]
[403816977,1769554244187,-474.0,0.00017178,2]
[403816978,1769554244196,-500.0,0.00017178,2]
[403816979,1769554244207,-857.0,0.00017178,2]
[403816980,1769554244217,-440.0,0.00017178,2]
[403816981,1769554244227,-265.49389154,0.00017178,2]
[403816982,1769554244236,-500.0,0.00017178,2]
[403816983,1769554244246,-500.0,0.00017178,2]
[403816984,1769554244256,-399.05102027,0.00017178,2]
[403816985,1769554244266,-1242.68,0.00017202,2]
[403816986,1769554244275,-500.0,0.00017233,2]
[403816987,1769554244284,-500.0,0.00017233,2]
[403816988,1769554244293,-500.0,0.00017233,2]
[403816989,1769554244303,-500.0,0.00017233,2]
[403816990,1769554244312,-474.0,0.00017233,2]
[403816991,1769554244321,-500.0,0.00017233,2]
[403816992,1769554244330,-857.0,0.00017233,2]
[403816993,1769554244339,-440.0,0.00017233,2]
[403816994,1769554244349,-500.0,0.00017233,2]
[403816995,1769554244359,-500.0,0.00017233,2]
[403816996,1769554244370,-707.0,0.00017245,2]
[403816997,1769554244380,-707.0,0.00017287,2]
[403816998,1769554244390,-500.0,0.00017288,2]
[403816999,1769554244400,-500.0,0.00017288,2]
[403817000,1769554244412,-500.0,0.00017288,2]
[403817001,1769554244421,-500.0,0.00017288,2]
[403817002,1769554244430,-474.0,0.00017288,2]
[403817003,1769554244442,-500.0,0.00017288,2]
[403817004,1769554244452,-857.0,0.00017288,2]
[403817005,1769554244462,-440.0,0.00017288,2]
[403817006,1769554244476,-500.0,0.00017288,2]
[403817007,1769554244485,-500.0,0.00017288,2]
[403817008,1769554244496,-1301.71,0.00017306,2]
[403817009,1769554244507,-707.0,0.00017329,2]
[403817010,1769554244517,-363.51122534,0.00017343,2]
[403817011,1769554244526,-500.0,0.00017343,2]
[403817012,1769554244537,-500.0,0.00017343,2]
[403817013,1769554244547,-500.0,0.00017343,2]
[403817014,1769554244558,-474.0,0.00017343,2]
[403817015,1769554244568,-500.0,0.00017343,2]
[403817016,1769554244578,-857.0,0.00017343,2]
[403817017,1769554244588,-440.0,0.00017343,2]
[403817018,1769554244597,-500.0,0.00017343,2]
[403817019,1769554244606,-500.0,0.00017343,2]
[403817020,1769554244616,-200.0,0.00017374,2]
[403817024,1769554244626,-155.0,0.00017376,2]
[403817025,1769554244864,-500.0,0.00017398,2]
[403817026,1769554244873,-500.0,0.00017398,2]
[403817027,1769554244883,-500.0,0.00017398,2]
[403817028,1769554244892,-474.0,0.00017398,2]
[403817029,1769554244902,-500.0,0.00017398,2]
[403817030,1769554244912,-857.0,0.00017398,2]
[403817031,1769554244923,-440.0,0.00017398,2]
[403817032,1769554244934,-500.0,0.00017398,2]
[403817033,1769554244944,-500.0,0.00017398,2]
[403817034,1769554244953,-482.8923735,0.00017452,2]
[403817035,1769554244963,-500.0,0.00017452,2]
[403817036,1769554244972,-241.51596019,0.00017452,2]
[403817037,1769554244981,-474.0,0.00017452,2]
[403817038,1769554244991,-500.0,0.00017452,2]
[403817039,1769554245000,-440.0,0.00017452,2]
[403817040,1769554245009,-857.0,0.00017452,2]
[403817041,1769554245019,-593.13448031,0.00017452,2]
[403817042,1769554245028,-500.0,0.00017452,2]
[403817043,1769554245037,-707.0,0.00017488,2]
[403817044,1769554245046,-500.0,0.00017507,2]
[403817045,1769554245056,-474.0,0.00017507,2]
[403817046,1769554245065,-223.2315926,0.00017507,2]
[403817047,1769554245074,-440.0,0.00017507,2]
[403817048,1769554245083,-857.0,0.00017507,2]